fUSD/lending_fUSD_20250708
["ID","MTS","AMOUNT","RATE_DAILY","PERIOD"]
[370387037,1751991039936,-344.23839665,0.0002422,2]
[370387040,1751991039951,-4942.72167817,0.0002422,2]
[370387042,1751991039967,-150.0,0.00024233,2]
[370387045,1751991039982,-781.21304018,0.00024252,2]
[370387047,1751991039996,-500.0,0.00024302,2]
[370387050,1751991040012,-150.0,0.0002435,2]
[370387053,1751991040027,-676.41659859,0.00024355,2]
[370387055,1751991040042,-676.4165986,0.00024355,2]
[370387058,1751991040057,-3558.40204007,0.00024355,2]
[370387061,1751991040073,-545.9767934,0.00024361,4]
[370387064,1751991040088,-2500.0,0.00024372,2]
[370387067,1751991040104,-1646.41698836,0.00024383,11]
[370387069,1751991040119,-319.2458,0.000244,2]
[370387072,1751991040135,-163.56998412,0.000244,2]
[370387074,1751991040150,-395.56994038,0.00024406,2]
[370387077,1751991040165,-500.0,0.00024406,2]
[370387079,1751991040179,-293.21285286,0.00024406,2]
[370387082,1751991040194,-500.0,0.00024406,2]
[370387085,1751991040209,-214.97481805,0.00024406,2]
[370387087,1751991040224,-333.22978433,0.00024406,2]
[370387090,1751991040237,-500.0,0.00024406,2]
[370387092,1751991040252,-500.0,0.00024406,2]
[370387095,1751991040268,-500.0,0.00024406,2]
[370387097,1751991040284,-500.0,0.00024406,2]
[370387100,1751991040299,-500.0,0.00024406,2]
[370387102,1751991040314,-245.4084446,0.00024406,2]
[370387105,1751991040329,-500.0,0.00024406,2]
[370387107,1751991040344,-500.0,0.00024406,2]
[370387110,1751991040360,-500.0,0.00024406,2]
[370387113,1751991040375,-500.0,0.00024406,2]
[370387116,1751991040391,-500.0,0.00024406,2]
[370387118,1751991040405,-500.0,0.00024406,2]
[370387121,1751991040421,-500.0,0.00024406,2]
[370387123,1751991040436,-500.0,0.00024406,2]
[370387126,1751991040452,-500.0,0.00024406,2]
[370387128,1751991040469,-500.0,0.00024406,2]
[370387131,1751991040484,-500.0,0.00024406,2]
[370387133,1751991040499,-500.0,0.00024406,2]
[370387136,1751991040514,-500.0,0.00024406,2]
[370387138,1751991040530,-203.29314002,0.00024406,2]
[370387141,1751991040546,-500.0,0.00024406,2]
[370387143,1751991040561,-500.0,0.00024406,2]
[370387146,1751991040575,-500.0,0.00024406,2]
[370387150,1751991040590,-500.0,0.00024406,2]
[370387154,1751991040604,-500.0,0.00024406,2]
[370387159,1751991040619,-500.0,0.00024406,2]
[370387162,1751991040635,-500.0,0.00024406,2]
[370387167,1751991040650,-241.8514,0.00024406,2]
[370387172,1751991040666,-500.0,0.00024406,2]
[370387175,1751991040681,-500.0,0.00024406,2]
[370387180,1751991040695,-500.0,0.00024406,2]
[370387183,1751991040710,-500.0,0.00024406,2]
[370387188,1751991040727,-3558.40203999,0.00024407,2]
[370387191,1751991040742,-500.0,0.00024424,2]
[370387196,1751991040757,-770.2004294,0.0002444,2]
[370387201,1751991040772,-1200.26788809,0.00024445,2]
[370387204,1751991040786,-451.91,0.0002445,2]
[370387209,1751991040801,-770.2004294,0.00024451,2]
[370387212,1751991040815,-159.58893409,0.00024452,2]
[370387217,1751991040830,-1989.20582,0.00024452,2]
[370387220,1751991040843,-179.14376915,0.00024453,2]
[370387223,1751991040858,-225.54954713,0.00024453,2]
[370387225,1751991040874,-500.0,0.00024453,2]
[370387228,1751991040889,-500.0,0.00024453,2]
[370387230,1751991040898,-500.0,0.00024453,2]
[370387232,1751991040907,-471.87488216,0.00024453,2]
[370387234,1751991040917,-5204.46,0.00024453,3]
[370387236,1751991040926,-8312.79,0.00024453,2]
[370387238,1751991040935,-1225.0,0.00024453,3]
[370387240,1751991040944,-150.0,0.00024453,3]
[370387242,1751991040954,-150.0,0.00024453,3]
[370387244,1751991040963,-500.0,0.00024453,3]
[370387246,1751991040973,-150.0,0.00024453,2]
[370387248,1751991040982,-1069.0,0.00024453,3]
[370387250,1751991040992,-150.0,0.00024453,3]
[370387252,1751991041001,-174.23483459,0.00024453,3]
[370387297,1751991041418,-500.0,0.00024453,3]
[370387303,1751991041464,-278.18805251,0.00024453,3]
[370387306,1751991041491,-150.0,0.00024453,3]
[370387309,1751991041502,-150.0,0.00024453,2]
[370387311,1751991041511,-150.0,0.00024453,3]
[370387313,1751991041521,-500.0,0.00024453,3]
[370387314,1751991041530,-150.0,0.00024453,3]
[370387316,1751991041540,-150.0,0.00024453,3]
[370387318,1751991041550,-150.0,0.00024453,3]
[370387320,1751991041559,-210.34477682,0.00024453,3]
[370387323,1751991041570,-837.09214054,0.00024453,3]
[370387325,1751991041580,-160.0,0.00024453,3]
[370387327,1751991041589,-11316.47777153,0.00024454,7]
[370387328,1751991041598,-7919.46750119,0.00024454,7]
[370387332,1751991041700,-770.60373482,0.00024454,7]
[370387333,1751991041712,-2920.43945013,0.00024454,7]
[370387334,1751991041758,-1211.62092196,0.00024454,7]
[370387335,1751991041769,-1965.30427423,0.00024454,7]
[370387336,1751991041780,-1765.79648198,0.00024454,7]
[370387337,1751991041792,-92555.25881623,0.00024454,7]
[370387338,1751991041803,-701741.08801441,0.00024454,7]
[370387356,1751991041978,-258.05627651,0.00024454,7]
[370387358,1751991041989,-92963.6134171,0.00024454,7]
[370387364,1751991042033,-28502.04600557,0.00024454,7]
[370387366,1751991042045,-316773.07438524,0.00024454,7]
[370387748,1751991045787,-926.38,0.00024206,2]
[370387750,1751991045798,-435621.60887138,0.00024454,7]
[370387752,1751991045807,-500.0,0.00024454,2]
[370387754,1751991045817,-150.0,0.00024454,2]
[370387756,1751991045826,-767.0,0.00024454,2]
[370387758,1751991045836,-150.0,0.00024454,2]
[370387760,1751991045845,-500.0,0.00024454,2]
[370387762,1751991045855,-548.0,0.00024454,2]
[370387764,1751991045864,-641.6248,0.00024455,2]
[370387766,1751991045873,-1000.0,0.00024455,2]
[370387768,1751991045882,-500.0,0.00024455,2]
[370387770,1751991045892,-483.0,0.00024455,2]
[370387772,1751991045901,-150.0,0.00024455,2]
[370387774,1751991045911,-417.0,0.00024455,2]
[370387776,1751991045921,-150.0,0.00024455,2]
[370387778,1751991045930,-255.21253273,0.00024455,2]
[370387780,1751991045940,-200.0,0.00024457,2]
[370387782,1751991045949,-3558.40203999,0.0002446,2]
[370387784,1751991045958,-770.2004294,0.00024461,2]
[370387786,1751991045968,-770.2004294,0.00024472,2]
[370387788,1751991045977,-500.0,0.00024473,2]
[370387790,1751991045987,-334.4243746,0.00024473,2]
[370387792,1751991045996,-500.0,0.00024473,2]
[370387794,1751991046005,-525.04797834,0.00024473,2]
[370387796,1751991046015,-500.0,0.00024473,2]
[370387798,1751991046024,-159.34671063,0.00024473,2]
[370387800,1751991046033,-500.0,0.00024473,2]
[370387802,1751991046042,-500.0,0.00024473,2]
[370387804,1751991046051,-500.0,0.00024473,2]
[370387806,1751991046061,-500.0,0.00024473,2]
[370387808,1751991046070,-500.0,0.00024473,2]
[370387810,1751991046079,-500.0,0.00024473,2]
[370387812,1751991046090,-500.0,0.00024473,2]
[370387814,1751991046099,-770.2004294,0.00024483,2]
[370387816,1751991046109,-1200.26788808,0.00024487,2]
[370387818,1751991046118,-770.2004294,0.00024493,2]
[370387820,1751991046128,-3407.282,0.00024496,7]
[370387822,1751991046138,-220.438,0.00024496,7]
[370387824,1751991046147,-1049.0,0.000245,6]
[370387826,1751991046158,-7500.0,0.000245,2]
[370387828,1751991046167,-7500.0,0.000245,2]
[370387830,1751991046177,-4781.16723648,0.000245,7]
[370387832,1751991046186,-770.2004294,0.00024504,2]
[370387834,1751991046195,-151.0,0.00024512,7]
[370387836,1751991046204,-151.0,0.00024512,7]
[370387838,1751991046213,-151.0,0.00024512,7]
[370387840,1751991046222,-3558.40203999,0.00024512,2]
[370387842,1751991046232,-770.2004294,0.00024514,2]
[370387844,1751991046241,-770.2004294,0.00024525,2]
[370387846,1751991046250,-1200.26788808,0.0002453,2]
[370387848,1751991046260,-210.97881021,0.00024531,2]
[370387850,1751991046269,-1000.0,0.00024534,2]
[370387852,1751991046278,-1000.0,0.00024534,2]
[370387854,1751991046288,-1000.0,0.00024534,2]
[370387856,1751991046297,-1000.0,0.00024534,2]
[370387858,1751991046306,-210.34477682,0.00024534,7]
[370387860,1751991046315,-837.09214054,0.00024534,7]
[370387862,1751991046324,-770.2004294,0.00024536,2]
[370387864,1751991046333,-160.0,0.0002454,7]
[370387866,1751991046342,-151.0,0.00024544,7]
[370387868,1751991046351,-151.0,0.00024544,7]
[370387870,1751991046361,-151.0,0.00024544,7]
[370387872,1751991046370,-151.0,0.00024544,7]
[370387874,1751991046379,-2311.674624,0.00024544,7]
[370387876,1751991046388,-2311.674624,0.00024544,7]
[370387878,1751991046398,-151.0,0.00024544,7]
[370387880,1751991046407,-151.0,0.00024544,7]
[370387882,1751991046416,-151.0,0.00024544,7]
[370387884,1751991046426,-500.0,0.00024545,2]
[370387886,1751991046435,-529.0,0.00024545,6]
[370387888,1751991046444,-151.0,0.00024546,7]
[370387890,1751991046454,-151.0,0.00024546,7]
[370387892,1751991046465,-151.0,0.00024546,7]
[370387894,1751991046477,-151.0,0.00024546,7]
[370387896,1751991046487,-2311.674624,0.00024546,7]
[370387898,1751991046496,-2311.674624,0.00024546,7]
[370387900,1751991046506,-151.0,0.00024546,7]
[370387902,1751991046516,-151.0,0.00024546,7]
[370387904,1751991046526,-132961.21978893,0.00024546,2]
[370387908,1751991046552,-151.0,0.00024546,7]
[370387909,1751991046562,-134266.31773895,0.00024546,2]
[370387911,1751991046571,-770.2004294,0.00024546,2]
[370387913,1751991046581,-5000.0,0.00024552,2]
[370387915,1751991046591,-8689.2112,0.00024552,3]
[370387917,1751991046601,-322.15810776,0.00024552,2]
[370387918,1751991046611,-185.0,0.00024554,7]
[370387919,1751991046620,-770.2004294,0.00024557,2]
[370387920,1751991046630,-3558.40203999,0.00024565,2]
[370387921,1751991046640,-1200.26788808,0.00024572,2]
[370387922,1751991046649,-152.0,0.00024576,2]
[370387923,1751991046659,-152.0,0.00024576,2]
[370387924,1751991046668,-292.49100199,0.00024576,2]
[370387925,1751991046678,-152.0,0.00024576,2]
[370387926,1751991046687,-152.0,0.00024576,2]
[370387927,1751991046697,-1205.0,0.00024576,2]
[370387928,1751991046707,-152.0,0.00024576,2]
[370387929,1751991046717,-1205.0,0.00024576,2]
[370387930,1751991046726,-152.0,0.00024576,2]
[370387931,1751991046736,-152.0,0.00024576,2]
[370387932,1751991046746,-201.72828295,0.00024576,2]
[370387933,1751991046755,-152.0,0.00024576,2]
[370387934,1751991046765,-1205.0,0.00024576,2]
[370387935,1751991046775,-152.0,0.00024576,2]
[370387936,1751991046784,-1205.0,0.00024576,2]
[370387938,1751991046794,-152.0,0.00024576,2]
[370387940,1751991046803,-1205.0,0.00024576,2]
[370387942,1751991046812,-152.0,0.00024576,2]
[370387944,1751991046822,-1205.0,0.00024576,2]
[370387946,1751991046831,-152.0,0.00024576,2]
[370387948,1751991046842,-1205.0,0.00024576,2]
[370387950,1751991046851,-152.0,0.00024576,2]
[370387952,1751991046860,-1205.0,0.00024576,2]
[370387954,1751991046870,-152.0,0.00024576,2]
[370387956,1751991046879,-1205.0,0.00024576,2]
[370387958,1751991046889,-152.0,0.00024576,2]
[370387960,1751991046898,-1205.0,0.00024576,2]
[370387962,1751991046907,-1205.0,0.00024576,2]
[370387964,1751991046917,-1205.0,0.00024576,2]
[370387966,1751991046926,-152.0,0.00024576,2]
[370387968,1751991046935,-1192.0,0.00024576,2]
[370387970,1751991046944,-152.0,0.00024576,2]
[370387972,1751991046953,-211.89905052,0.00024576,2]
[370387974,1751991046963,-2957.11570074,0.00024596,2]
[370387976,1751991046973,-264.0,0.000246,4]
[370387978,1751991046982,-238.0,0.000246,2]
[370387980,1751991046991,-503.0,0.000246,2]
[370387982,1751991047003,-377.0,0.000246,2]
[370387984,1751991047013,-2454.0,0.000246,5]
[370387986,1751991047022,-772.0,0.000246,2]
[370387988,1751991047032,-837.09214054,0.00024614,2]
[370387990,1751991047041,-210.34477682,0.00024614,2]
[370387993,1751991047051,-1200.26788808,0.00024615,2]
[370387995,1751991047060,-160.0,0.00024615,2]
[370387997,1751991047070,-3558.40203999,0.00024617,2]
[370387999,1751991047080,-1082.0,0.00024627,2]
[370388000,1751991047089,-2957.11570074,0.00024631,2]
[370388003,1751991047098,-3035.01568384,0.00024634,2]
[370388004,1751991047108,-151.0,0.00024645,7]
[370388006,1751991047118,-151.0,0.00024645,7]
[370388009,1751991047128,-151.0,0.00024645,7]
[370388011,1751991047138,-151.0,0.00024645,7]
[370388013,1751991047147,-151.0,0.00024645,7]
[370388015,1751991047157,-410.857739,0.00024645,7]
[370388017,1751991047166,-410.857739,0.00024645,7]
[370388019,1751991047175,-151.0,0.00024645,7]
[370388021,1751991047186,-151.0,0.00024645,7]
[370388022,1751991047195,-151.0,0.00024645,7]
[370388024,1751991047205,-234.555655,0.00024645,7]
[370388026,1751991047214,-234.555655,0.00024645,7]
[370388028,1751991047223,-151.0,0.00024645,7]
[370388030,1751991047233,-151.0,0.00024645,7]
[370388032,1751991047242,-151.0,0.00024645,7]
[370388035,1751991047252,-151.0,0.00024645,7]
[370388037,1751991047261,-209.754586,0.00024645,7]
[370388039,1751991047270,-171.164662,0.00024645,7]
[370388041,1751991047280,-171.164662,0.00024645,7]
[370388043,1751991047289,-3035.01568384,0.00024648,2]
[370388045,1751991047298,-3921.5516588,0.00024648,2]
[370388047,1751991047308,-151.0,0.00024648,7]
[370388049,1751991047318,-36158.065305,0.00024648,2]
[370388051,1751991047327,-151.0,0.00024648,7]
[370388053,1751991047338,-1877.0561221,0.00024648,2]
[370388055,1751991047348,-33249.4019167,0.00024648,2]
[370388057,1751991047357,-151.0,0.00024648,7]
[370388059,1751991047367,-2671.7308204,0.00024648,2]
[370388061,1751991047376,-226.16936249,0.00024648,2]
[370388063,1751991047385,-151.0,0.00024648,7]
[370388065,1751991047395,-156.171476,0.00024648,7]
[370388067,1751991047405,-93547.8925364,0.00024648,2]
[370388069,1751991047414,-151.0,0.00024648,7]
[370388071,1751991047423,-155.505899,0.00024648,7]
[370388072,1751991047432,-151.0,0.00024648,7]
[370388075,1751991047441,-151.0,0.00024648,7]
[370388076,1751991047451,-8872.7578564,0.00024648,2]
[370388079,1751991047461,-225.623546,0.00024648,7]
[370388081,1751991047475,-419.885289,0.00024648,7]
[370388083,1751991047485,-2311.674624,0.00024648,7]
[370388085,1751991047495,-2311.674624,0.00024648,7]
[370388087,1751991047505,-419.885289,0.00024648,7]
[370388089,1751991047515,-2311.674624,0.00024648,7]
[370388091,1751991047525,-2311.674624,0.00024648,7]
[370388093,1751991047534,-151.0,0.00024648,7]
[370388095,1751991047547,-151.0,0.00024648,7]
[370388097,1751991047558,-151.0,0.00024648,7]
[370388099,1751991047568,-151.0,0.00024648,7]
[370388101,1751991047577,-192.55996643,0.0002465,2]
[370388103,1751991047589,-151.0,0.00024652,7]
[370388105,1751991047598,-151.0,0.00024652,7]
[370388107,1751991047608,-151.0,0.00024652,7]
[370388109,1751991047619,-477.418436,0.00024652,7]
[370388111,1751991047628,-477.418436,0.00024652,7]
[370388113,1751991047639,-419.885289,0.00024652,7]
[370388115,1751991047648,-419.885289,0.00024652,7]
[370388117,1751991047659,-2011.0,0.00024655,2]
[370388119,1751991047669,-200.919149,0.00024655,7]
[370388121,1751991047678,-200.919149,0.00024655,7]
[370388123,1751991047691,-196.384572,0.00024655,7]
[370388125,1751991047700,-196.384572,0.00024655,7]
[370388127,1751991047710,-295.959239,0.00024655,7]
[370388129,1751991047720,-151.0,0.00024655,7]
[370388131,1751991047729,-295.959239,0.00024655,7]
[370388133,1751991047739,-151.0,0.00024655,7]
[370388135,1751991047750,-151.0,0.00024655,7]
[370388137,1751991047760,-151.0,0.00024655,7]
[370388139,1751991047769,-151.0,0.00024655,7]
[370388141,1751991047779,-151.0,0.00024655,7]
[370388143,1751991047789,-151.0,0.00024655,7]
[370388145,1751991047798,-151.0,0.00024655,7]
[370388147,1751991047807,-151.0,0.00024655,7]
[370388149,1751991047817,-151.0,0.00024655,7]
[370388151,1751991047826,-151.0,0.00024655,7]
[370388153,1751991047837,-151.0,0.00024655,7]
[370388155,1751991047846,-151.0,0.00024655,7]
[370388157,1751991047856,-342.235882,0.00024655,7]
[370388159,1751991047866,-342.235882,0.00024655,7]
[370388161,1751991047875,-342.235882,0.00024655,7]
[370388163,1751991047884,-342.235882,0.00024655,7]
[370388165,1751991047894,-161.262627,0.00024655,7]
[370388167,1751991047904,-161.262627,0.00024655,7]
[370388169,1751991047914,-161.262627,0.00024655,7]
[370388171,1751991047924,-161.262627,0.00024655,7]
[370388173,1751991047934,-203.059213,0.00024655,7]
[370388175,1751991047943,-203.059213,0.00024655,7]
[370388177,1751991047954,-203.059213,0.00024655,7]
[370388179,1751991047963,-203.059213,0.00024655,7]
[370388181,1751991047973,-477.418436,0.00024655,7]
[370388183,1751991047983,-477.418436,0.00024655,7]
[370388205,1751991048266,-151.0,0.00024655,7]
[370388206,1751991048276,-151.0,0.00024655,7]
[370388208,1751991048285,-289.340133,0.00024655,7]
[370388210,1751991048295,-289.340133,0.00024655,7]
[370388212,1751991048304,-151.0,0.00024656,7]
[370388214,1751991048313,-198.697499,0.00024656,7]
[370388216,1751991048323,-151.0,0.00024656,7]
[370388218,1751991048332,-1000.0,0.00024656,2]
[370388220,1751991048342,-1000.0,0.00024656,2]
[370388222,1751991048351,-151.0,0.00024656,7]
[370388224,1751991048361,-151.0,0.00024656,7]
[370388226,1751991048370,-151.0,0.00024656,7]
[370388228,1751991048379,-182.191027,0.00024656,7]
[370388230,1751991048389,-182.191027,0.00024656,7]
[370388232,1751991048398,-151.0,0.00024656,7]
[370388234,1751991048407,-151.0,0.00024656,7]
[370388236,1751991048417,-151.0,0.00024656,7]
[370388238,1751991048427,-151.0,0.00024656,7]
[370388240,1751991048436,-151.566845,0.00024656,7]
[370388242,1751991048445,-151.0,0.00024656,7]
[370388244,1751991048455,-312.486578,0.00024656,7]
[370388246,1751991048469,-348.539981,0.00024656,7]
[370388248,1751991048479,-312.486578,0.00024656,7]
[370388250,1751991048489,-348.539981,0.00024656,7]
[370388252,1751991048499,-182.367937,0.00024656,7]
[370388254,1751991048509,-151.0,0.00024656,7]
[370388256,1751991048519,-151.0,0.00024656,7]
[370388258,1751991048530,-151.0,0.00024656,7]
[370388260,1751991048541,-151.0,0.00024656,7]
[370388262,1751991048551,-151.0,0.00024656,7]
[370388264,1751991048561,-151.0,0.00024656,7]
[370388266,1751991048571,-245.362648,0.00024656,7]
[370388268,1751991048582,-151.0,0.00024656,7]
[370388270,1751991048597,-151.0,0.00024656,7]
[370388272,1751991048607,-153.631521,0.00024656,7]
[370388274,1751991048617,-151.0,0.00024656,7]
[370388276,1751991048627,-257.85429,0.00024656,7]
[370388278,1751991048636,-1822.488531,0.00024656,7]
[370388280,1751991048646,-1822.488531,0.00024656,7]
[370388282,1751991048655,-1822.488531,0.00024656,7]
[370388284,1751991048665,-1822.488531,0.00024656,7]
[370388286,1751991048675,-617.888465,0.00024656,7]
[370388288,1751991048685,-617.888465,0.00024656,7]
[370388290,1751991048694,-228.777458,0.00024656,7]
[370388291,1751991048704,-228.777458,0.00024656,7]
[370388292,1751991048713,-228.777458,0.00024656,7]
[370388293,1751991048726,-228.777458,0.00024656,7]
[370388294,1751991048735,-151.0,0.00024656,7]
[370388295,1751991048745,-151.0,0.00024656,7]
[370388296,1751991048754,-151.0,0.00024656,7]
[370388297,1751991048764,-151.0,0.00024656,7]
[370388298,1751991048774,-151.0,0.00024656,7]
[370388299,1751991048783,-151.0,0.00024656,7]
[370388300,1751991048792,-153.675113,0.00024656,7]
[370388301,1751991048801,-693.519663,0.00024656,7]
[370388302,1751991048811,-693.519663,0.00024656,7]
[370388303,1751991048820,-693.519663,0.00024656,7]
[370388304,1751991048830,-693.519663,0.00024656,7]
[370388305,1751991048845,-151.0,0.00024656,7]
[370388306,1751991048855,-151.0,0.00024656,7]
[370388307,1751991048866,-151.0,0.00024656,7]
[370388308,1751991048876,-151.0,0.00024656,7]
[370388309,1751991048885,-151.0,0.00024656,7]
[370388310,1751991048895,-151.0,0.00024656,7]
[370388311,1751991048905,-151.0,0.00024656,7]
[370388312,1751991048915,-151.0,0.00024656,7]
[370388313,1751991048924,-154.776071,0.00024656,7]
[370388314,1751991048934,-151.0,0.00024656,7]
[370388315,1751991048946,-151.0,0.00024656,7]
[370388316,1751991048955,-200.919149,0.00024656,7]
[370388317,1751991048965,-200.919149,0.00024656,7]
[370388319,1751991048974,-200.919149,0.00024656,7]
[370388321,1751991048983,-200.919149,0.00024656,7]
[370388323,1751991048993,-196.384572,0.00024656,7]
[370388325,1751991049002,-196.384572,0.00024656,7]
[370388327,1751991049011,-151.0,0.00024656,7]
[370388329,1751991049020,-196.384572,0.00024656,7]
[370388331,1751991049030,-235.75164,0.00024656,7]
[370388333,1751991049039,-196.384572,0.00024656,7]
[370388335,1751991049048,-151.0,0.00024656,7]
[370388337,1751991049058,-151.0,0.00024656,7]
[370388339,1751991049067,-151.0,0.00024656,7]
[370388341,1751991049077,-178.863248,0.00024656,7]
[370388342,1751991049088,-151.0,0.00024656,7]
[370388344,1751991049098,-151.0,0.00024656,7]
[370388347,1751991049107,-151.0,0.00024656,7]
[370388348,1751991049117,-151.0,0.00024656,7]
[370388350,1751991049127,-151.0,0.00024656,7]
[370388353,1751991049136,-151.0,0.00024656,7]
[370388355,1751991049146,-151.0,0.00024656,7]
[370388356,1751991049155,-151.0,0.00024656,7]
[370388358,1751991049164,-151.0,0.00024656,7]
[370388360,1751991049173,-151.0,0.00024656,7]
[370388362,1751991049183,-410.857739,0.00024656,7]
[370388364,1751991049192,-410.857739,0.00024656,7]
[370388366,1751991049201,-151.0,0.00024656,7]
[370388368,1751991049210,-151.0,0.00024656,7]
[370388370,1751991049220,-410.857739,0.00024656,7]
[370388372,1751991049229,-410.857739,0.00024656,7]
[370388374,1751991049239,-151.0,0.00024656,7]
[370388376,1751991049248,-151.0,0.00024656,7]
[370388378,1751991049257,-244.578953,0.00024656,7]
[370388380,1751991049267,-151.0,0.00024656,7]
[370388382,1751991049276,-182.140759,0.00024656,7]
[370388384,1751991049285,-151.0,0.00024656,7]
[370388386,1751991049294,-151.0,0.00024656,7]
[370388388,1751991049303,-278.637567,0.00024656,7]
[370388390,1751991049312,-234.555655,0.00024656,7]
[370388392,1751991049322,-234.555655,0.00024656,7]
[370388394,1751991049331,-234.555655,0.00024656,7]
[370388396,1751991049343,-234.555655,0.00024656,7]
[370388398,1751991049352,-151.0,0.00024656,7]
[370388400,1751991049361,-151.0,0.00024656,7]
[370388402,1751991049371,-151.0,0.00024656,7]
[370388404,1751991049380,-151.0,0.00024656,7]
[370388406,1751991049389,-151.0,0.00024656,7]
[370388408,1751991049398,-269.842995,0.00024656,7]
[370388410,1751991049408,-151.0,0.00024656,7]
[370388412,1751991049417,-151.0,0.00024656,7]
[370388414,1751991049426,-295.959239,0.00024656,7]
[370388416,1751991049436,-295.959239,0.00024656,7]
[370388418,1751991049445,-295.959239,0.00024656,7]
[370388420,1751991049454,-295.959239,0.00024656,7]
[370388422,1751991049464,-151.0,0.00024656,7]
[370388424,1751991049476,-151.0,0.00024656,7]
[370388426,1751991049485,-151.0,0.00024656,7]
[370388428,1751991049494,-151.0,0.00024656,7]
[370388430,1751991049504,-151.0,0.00024656,7]
[370388432,1751991049514,-151.0,0.00024656,7]
[370388434,1751991049523,-266.70567587,0.00024656,7]
[370388436,1751991049532,-151.0,0.00024656,7]
[370388438,1751991049543,-687.157417,0.00024656,7]
[370388440,1751991049554,-687.157417,0.00024656,7]
[370388442,1751991049563,-687.157417,0.00024656,7]
[370388444,1751991049572,-687.157417,0.00024656,7]
[370388446,1751991049582,-151.0,0.00024656,7]
[370388448,1751991049591,-151.0,0.00024656,7]
[370388450,1751991049601,-151.0,0.00024656,7]
[370388452,1751991049610,-151.0,0.00024656,7]
[370388454,1751991049619,-342.235882,0.00024656,7]
[370388456,1751991049629,-342.235882,0.00024656,7]
[370388458,1751991049638,-151.0,0.00024656,7]
[370388460,1751991049647,-151.0,0.00024656,7]
[370388462,1751991049657,-161.262627,0.00024656,7]
[370388464,1751991049666,-161.262627,0.00024656,7]
[370388466,1751991049675,-171.164662,0.00024656,7]
[370388468,1751991049684,-171.164662,0.00024656,7]
[370388470,1751991049694,-171.164662,0.00024656,7]
[370388472,1751991049704,-171.164662,0.00024656,7]
[370388474,1751991049713,-286.846714,0.00024656,7]
[370388476,1751991049724,-203.059213,0.00024656,7]
[370388478,1751991049733,-203.059213,0.00024656,7]
[370388480,1751991049742,-151.0,0.00024656,7]
[370388482,1751991049752,-151.0,0.00024656,7]
[370388484,1751991049761,-477.418436,0.00024656,7]
[370388486,1751991049770,-477.418436,0.00024656,7]
[370388488,1751991049779,-151.0,0.00024656,7]
[370388490,1751991049788,-289.340133,0.00024656,7]
[370388492,1751991049797,-289.340133,0.00024656,7]
[370388494,1751991049807,-151.0,0.00024656,7]
[370388496,1751991049816,-419.885289,0.00024656,7]
[370388498,1751991049825,-419.885289,0.00024656,7]
[370388500,1751991049834,-2311.674624,0.00024656,7]
[370388502,1751991049844,-419.885289,0.00024656,7]
[370388504,1751991049854,-419.885289,0.00024656,7]
[370388506,1751991049863,-2311.674624,0.00024656,7]
[370388508,1751991049871,-151.0,0.00024656,7]
[370388510,1751991049881,-151.0,0.00024656,7]
[370388512,1751991049890,-32151.7064009,0.00024656,4]
[370388514,1751991049899,-382.54804063,0.00024656,2]
[370388516,1751991049908,-1134.32948036,0.00024657,2]
[370388518,1751991049918,-151.0,0.00024657,7]